fUSD/lending_fUSD_20240119
["ID","MTS","AMOUNT","RATE_DAILY","PERIOD"]
[312171217,1705678248130,-500.0,0.00022191,2]
[312171218,1705678248140,-500.0,0.00022191,2]
[312171219,1705678248150,-500.0,0.00022191,2]
[312171220,1705678248159,-500.0,0.00022191,2]
[312171221,1705678248169,-500.0,0.00022191,2]
[312171222,1705678248179,-574.45,0.00022191,2]
[312171223,1705678248188,-500.0,0.00022191,2]
[312171224,1705678248198,-500.0,0.00022191,2]
[312171225,1705678248208,-500.0,0.00022191,2]
[312171226,1705678248217,-500.0,0.00022191,2]
[312171227,1705678248227,-500.0,0.00022191,2]
[312171228,1705678248237,-500.0,0.00022191,2]
[312171230,1705678248247,-1029.35,0.00022191,2]
[312171232,1705678248256,-722.37,0.00022191,2]
[312171234,1705678248265,-500.0,0.00022191,2]
[312171236,1705678248274,-500.0,0.00022191,2]
[312171238,1705678248283,-500.0,0.00022191,2]
[312171240,1705678248293,-679.74,0.00022191,2]
[312171242,1705678248302,-500.0,0.00022191,2]
[312171244,1705678248312,-500.0,0.00022191,2]
[312171246,1705678248321,-500.0,0.00022191,2]
[312171248,1705678248330,-500.0,0.00022191,2]
[312171250,1705678248339,-500.0,0.00022191,2]
[312171252,1705678248349,-500.0,0.00022191,2]
[312171254,1705678248358,-500.0,0.00022191,2]
[312171256,1705678248367,-500.0,0.00022191,2]
[312171257,1705678248377,-500.0,0.00022191,2]
[312171258,1705678248386,-762.34,0.00022191,2]
[312171259,1705678248396,-500.0,0.00022191,2]
[312171260,1705678248405,-500.0,0.00022191,2]
[312171261,1705678248415,-500.0,0.00022191,2]
[312171262,1705678248425,-805.61,0.00022191,2]
[312171263,1705678248434,-500.0,0.00022191,2]
[312171264,1705678248443,-1070.38,0.00022191,2]
[312171265,1705678248452,-500.0,0.00022191,2]
[312171266,1705678248461,-1119.49,0.00022191,2]
[312171268,1705678248470,-416.88975934,0.00022191,2]
[312171269,1705678248480,-616.25780795,0.00022191,2]
[312171270,1705678248489,-500.0,0.00022191,2]
[312171271,1705678248498,-500.0,0.00022191,2]
[312171272,1705678248507,-500.0,0.00022191,2]
[312171273,1705678248517,-500.0,0.00022191,2]
[312171274,1705678248526,-500.0,0.00022191,2]
[312171275,1705678248535,-500.0,0.00022191,2]
[312171276,1705678248544,-500.0,0.00022191,2]
[312171277,1705678248554,-500.0,0.00022191,2]
[312171278,1705678248564,-755.31,0.00022191,2]
[312171279,1705678248574,-500.0,0.00022191,2]
[312171280,1705678248583,-515.29,0.00022191,2]
[312171282,1705678248593,-545.56,0.00022191,2]
[312171283,1705678248602,-500.0,0.00022191,2]
[312171284,1705678248612,-500.0,0.00022191,2]
[312171285,1705678248621,-500.0,0.00022191,2]
[312171286,1705678248631,-668.31,0.00022191,2]
[312171287,1705678248641,-500.0,0.00022191,2]
[312171288,1705678248651,-500.0,0.00022191,2]
[312171289,1705678248660,-625.23,0.00022191,2]
[312171290,1705678248670,-500.0,0.00022191,2]
[312171291,1705678248679,-500.0,0.00022191,2]
[312171292,1705678248688,-649.83,0.00022191,2]
[312171293,1705678248703,-518.9,0.00022191,2]
[312171294,1705678248712,-554.14,0.00022191,2]
[312171295,1705678248722,-500.0,0.00022191,2]
[312171296,1705678248731,-500.0,0.00022191,2]
[312171297,1705678248741,-800.49,0.00022191,2]
[312171298,1705678248751,-500.0,0.00022191,2]
[312171299,1705678248760,-500.0,0.00022191,2]
[312171300,1705678248770,-500.0,0.00022191,2]
[312171301,1705678248779,-585.19,0.00022191,2]
[312171302,1705678248789,-500.0,0.00022191,2]
[312171303,1705678248799,-500.0,0.00022191,2]
[312171304,1705678248809,-500.0,0.00022191,2]
[312171305,1705678248818,-602.84,0.00022191,2]
[312171306,1705678248827,-500.0,0.00022191,2]
[312171307,1705678248837,-500.0,0.00022191,2]
[312171308,1705678248846,-500.0,0.00022191,2]
[312171309,1705678248855,-500.0,0.00022191,2]
[312171310,1705678248865,-500.0,0.00022191,2]
[312171311,1705678248874,-755.01,0.00022191,2]
[312171312,1705678248883,-500.0,0.00022191,2]
[312171313,1705678248893,-647.57,0.00022191,2]
[312171314,1705678248902,-500.0,0.00022191,2]
[312171315,1705678248911,-500.0,0.00022191,2]
[312171316,1705678248920,-945.29,0.00022191,2]
[312171317,1705678248929,-500.0,0.00022191,2]
[312171318,1705678248938,-500.0,0.00022191,2]
[312171319,1705678248947,-591.96,0.00022191,2]
[312171320,1705678248956,-616.28,0.00022191,2]
[312171321,1705678248965,-500.0,0.00022191,2]
[312171322,1705678248975,-500.0,0.00022191,2]
[312171323,1705678248984,-500.0,0.00022191,2]
[312171324,1705678248992,-500.0,0.00022191,2]
[312171325,1705678249002,-714.49,0.00022191,2]
[312171326,1705678249011,-500.0,0.00022191,2]
[312171327,1705678249023,-500.0,0.00022191,2]
[312171328,1705678249031,-511.42,0.00022191,2]
[312171329,1705678249041,-500.0,0.00022191,2]
[312171330,1705678249050,-500.0,0.00022191,2]
[312171331,1705678249062,-500.0,0.00022191,2]
[312171332,1705678249072,-500.0,0.00022191,2]
[312171333,1705678249082,-500.0,0.00022191,2]
[312171334,1705678249091,-794.31,0.00022191,2]
[312171335,1705678249100,-715.35,0.00022191,2]
[312171336,1705678249110,-500.0,0.00022191,2]
[312171337,1705678249121,-500.0,0.00022191,2]
[312171338,1705678249130,-500.0,0.00022191,2]
[312171339,1705678249139,-500.0,0.00022191,2]
[312171340,1705678249149,-500.0,0.00022191,2]
[312171341,1705678249158,-500.0,0.00022191,2]
[312171342,1705678249167,-500.0,0.00022191,2]
[312171343,1705678249176,-500.0,0.00022191,2]
[312171344,1705678249185,-500.0,0.00022191,2]
[312171345,1705678249194,-591.89,0.00022191,2]
[312171346,1705678249204,-500.0,0.00022191,2]
[312171347,1705678249213,-500.0,0.00022191,2]
[312171348,1705678249223,-500.0,0.00022191,2]
[312171349,1705678249233,-727.12,0.00022191,2]
[312171350,1705678249243,-872.21,0.00022191,2]
[312171351,1705678249253,-500.0,0.00022191,2]
[312171352,1705678249262,-500.0,0.00022191,2]
[312171353,1705678249272,-500.0,0.00022191,2]
[312171354,1705678249281,-717.07,0.00022191,2]
[312171355,1705678249290,-500.0,0.00022191,2]
[312171356,1705678249300,-589.35,0.00022191,2]
[312171357,1705678249311,-500.0,0.00022191,2]
[312171358,1705678249321,-500.0,0.00022191,2]
[312171359,1705678249331,-500.0,0.00022191,2]
[312171360,1705678249340,-838.1,0.00022191,2]
[312171361,1705678249350,-699.17,0.00022191,2]
[312171362,1705678249360,-1054.42,0.00022191,2]
[312171363,1705678249370,-500.0,0.00022191,2]
[312171364,1705678249379,-500.0,0.00022191,2]
[312171365,1705678249388,-500.0,0.00022191,2]
[312171366,1705678249398,-862.35,0.00022191,2]
[312171367,1705678249408,-519.77,0.00022191,2]
[312171368,1705678249516,-500.0,0.00022191,2]
[312171369,1705678249569,-500.0,0.00022191,2]
[312171370,1705678249580,-500.0,0.00022191,2]
[312171371,1705678249591,-500.0,0.00022191,2]
[312171372,1705678249601,-903.53,0.00022191,2]
[312171373,1705678249610,-695.15,0.00022191,2]
[312171374,1705678249620,-507.74,0.00022191,2]
[312171375,1705678249630,-500.0,0.00022191,7]
[312171376,1705678249640,-500.0,0.00022191,2]
[312171377,1705678249650,-500.0,0.00022191,2]
[312171378,1705678249659,-500.0,0.00022191,2]
[312171379,1705678249669,-545.49,0.00022191,2]
[312171380,1705678249678,-500.0,0.00022191,2]
[312171381,1705678249688,-500.0,0.00022191,2]
[312171382,1705678249698,-500.0,0.00022191,2]
[312171383,1705678249707,-563.38,0.00022191,2]
[312171384,1705678249717,-635.14,0.00022191,2]
[312171385,1705678249727,-500.0,0.00022191,2]
[312171386,1705678249736,-679.28,0.00022191,2]
[312171387,1705678249746,-305.0730139,0.00022191,2]
[312171388,1705678249755,-500.0,0.00022191,2]
[312171389,1705678249764,-500.0,0.00022191,2]
[312171390,1705678249774,-500.0,0.00022191,2]
[312171391,1705678249783,-500.0,0.00022191,2]
[312171392,1705678249793,-518.65,0.00022191,2]
[312171393,1705678249802,-659.28,0.00022191,2]
[312171394,1705678249813,-761.1,0.00022191,2]
[312171395,1705678249823,-500.0,0.00022191,2]
[312171396,1705678249832,-750.39,0.00022191,2]
[312171397,1705678249842,-500.0,0.00022191,2]
[312171398,1705678249851,-500.0,0.00022191,2]
[312171399,1705678249861,-680.1,0.00022191,2]
[312171400,1705678249870,-579.31,0.00022191,2]
[312171401,1705678249880,-500.0,0.00022191,2]
[312171402,1705678249889,-500.0,0.00022191,2]
[312171403,1705678249899,-627.26,0.00022191,2]
[312171404,1705678249909,-766.95,0.00022191,2]
[312171405,1705678249918,-849.95,0.00022191,2]
[312171406,1705678249928,-500.0,0.00022191,2]
[312171407,1705678249937,-500.0,0.00022191,2]
[312171408,1705678249947,-588.93,0.00022191,2]
[312171409,1705678249956,-500.0,0.00022191,2]
[312171410,1705678249966,-500.0,0.00022191,2]
[312171411,1705678249975,-500.0,0.00022191,2]
[312171412,1705678249984,-829.52,0.00022191,2]
[312171413,1705678249993,-2495.55,0.00022191,2]
[312171414,1705678250003,-788.2,0.00022191,2]
[312171415,1705678250012,-731.33,0.00022191,2]
[312171416,1705678250022,-500.0,0.00022191,2]
[312171417,1705678250034,-500.0,0.00022191,2]
[312171418,1705678250045,-500.0,0.00022191,2]
[312171419,1705678250055,-500.0,0.00022191,2]
[312171420,1705678250068,-500.0,0.00022191,2]
[312171421,1705678250081,-634.89,0.00022191,2]
[312171422,1705678250092,-791.03,0.00022191,2]
[312171423,1705678250102,-500.0,0.00022191,2]
[312171424,1705678250112,-500.0,0.00022191,2]
[312171425,1705678250124,-1759.05,0.00022191,2]
[312171426,1705678250134,-500.0,0.00022191,2]
[312171427,1705678250144,-645.26,0.00022191,2]
[312171428,1705678250154,-500.0,0.00022191,2]
[312171429,1705678250164,-500.0,0.00022191,2]
[312171430,1705678250174,-687.51,0.00022191,2]
[312171431,1705678250184,-500.0,0.00022191,2]
[312171432,1705678250194,-500.0,0.00022191,2]
[312171433,1705678250204,-542.98,0.00022191,2]
[312171434,1705678250214,-713.71,0.00022191,2]
[312171435,1705678250224,-684.71,0.00022191,2]
[312171436,1705678250233,-500.0,0.00022191,2]
[312171437,1705678250243,-911.28,0.00022191,2]
[312171438,1705678250253,-616.72,0.00022191,2]
[312171439,1705678250264,-500.0,0.00022191,2]
[312171440,1705678250275,-500.0,0.00022191,2]
[312171441,1705678250285,-500.0,0.00022191,2]
[312171442,1705678250295,-889.99,0.00022191,2]
[312171443,1705678250305,-577.21,0.00022191,2]
[312171444,1705678250319,-608.04234198,0.00022191,2]
[312171445,1705678250330,-508.68,0.00022191,2]
[312171446,1705678250340,-500.0,0.00022191,2]
[312171447,1705678250350,-549.42,0.00022191,2]
[312171448,1705678250359,-957.59,0.00022191,2]
[312171449,1705678250369,-500.0,0.00022191,2]
[312171450,1705678250379,-1588.65,0.00022191,2]
[312171451,1705678250389,-500.0,0.00022191,2]
[312171452,1705678250399,-500.0,0.00022191,2]
[312171453,1705678250409,-500.0,0.00022191,2]
[312171454,1705678250419,-500.0,0.00022191,2]
[312171455,1705678250429,-874.67,0.00022191,2]
[312171456,1705678250439,-500.0,0.00022191,2]
[312171457,1705678250449,-500.0,0.00022191,2]
[312171458,1705678250459,-500.0,0.00022191,2]
[312171459,1705678250469,-500.0,0.00022191,2]
[312171460,1705678250479,-500.0,0.00022191,2]
[312171461,1705678250489,-500.0,0.00022191,2]
[312171462,1705678250499,-500.0,0.00022191,2]
[312171463,1705678250509,-500.0,0.00022191,2]
[312171464,1705678250519,-973.68,0.00022191,2]
[312171465,1705678250529,-2586.47,0.00022191,2]
[312171466,1705678250539,-512.93,0.00022191,2]
[312171467,1705678250550,-500.0,0.00022191,2]
[312171468,1705678250560,-798.26,0.00022191,2]
[312171469,1705678250571,-500.0,0.00022191,2]
[312171470,1705678250581,-163.02,0.00022191,2]
[312171471,1705678250591,-1209.83,0.00022191,2]
[312171472,1705678250601,-642.84,0.00022191,2]
[312171473,1705678250611,-500.0,0.00022191,2]
[312171474,1705678250621,-500.0,0.00022191,2]
[312171475,1705678250631,-936.38,0.00022191,2]
[312171476,1705678250642,-500.0,0.00022191,2]
[312171477,1705678250652,-1155.52,0.00022191,2]
[312171478,1705678250663,-508.85,0.00022191,2]
[312171479,1705678250674,-500.0,0.00022191,2]
[312171480,1705678250684,-500.0,0.00022191,2]
[312171481,1705678250694,-874.6,0.00022191,2]
[312171482,1705678250703,-1101.12,0.00022191,2]
[312171483,1705678250713,-1683.81,0.00022191,2]
[312171484,1705678250724,-500.0,0.00022191,2]
[312171485,1705678250734,-1902.57,0.00022191,2]
[312171486,1705678250743,-500.0,0.00022191,2]
[312171487,1705678250754,-500.0,0.00022191,2]
[312171488,1705678250764,-1649.75,0.00022191,2]
[312171489,1705678250774,-500.0,0.00022191,2]
[312171490,1705678250784,-1427.46,0.00022191,2]
[312171491,1705678250794,-500.0,0.00022191,2]
[312171492,1705678250804,-500.0,0.00022191,2]
[312171493,1705678250817,-693.46,0.00022191,2]
[312171494,1705678250828,-782.46,0.00022191,2]
[312171495,1705678250838,-2523.58,0.00022191,2]
[312171496,1705678250848,-798.73,0.00022191,2]
[312171497,1705678250858,-500.0,0.00022191,2]
[312171498,1705678250869,-2927.77,0.00022191,2]
[312171499,1705678250879,-500.0,0.00022191,2]
[312171500,1705678250889,-500.0,0.00022191,2]
[312171501,1705678250900,-500.0,0.00022191,2]
[312171502,1705678250910,-558.05,0.00022191,2]
[312171503,1705678250921,-1720.68,0.00022191,2]
[312171504,1705678250931,-1245.53,0.00022191,2]
[312171505,1705678250941,-500.0,0.00022191,2]
[312171506,1705678250951,-1313.85,0.00022191,2]
[312171507,1705678250961,-500.0,0.00022191,2]
[312171508,1705678250971,-500.0,0.00022191,2]
[312171509,1705678250982,-1065.88,0.00022191,2]
[312171510,1705678250993,-500.0,0.00022191,2]
[312171511,1705678251003,-500.0,0.00022191,2]
[312171512,1705678251012,-1751.08,0.00022191,2]
[312171513,1705678251023,-500.0,0.00022191,2]
[312171514,1705678251033,-652.01,0.00022191,2]
[312171515,1705678251045,-500.0,0.00022191,2]
[312171516,1705678251055,-500.0,0.00022191,2]
[312171517,1705678251067,-616.53,0.00022191,2]
[312171518,1705678251077,-500.0,0.00022191,2]
[312171519,1705678251089,-854.13,0.00022191,2]
[312171520,1705678251100,-4654.98,0.00022191,2]
[312171521,1705678251110,-1355.37,0.00022191,2]
[312171522,1705678251121,-500.0,0.00022191,2]
[312171523,1705678251131,-688.22,0.00022191,2]
[312171524,1705678251141,-500.0,0.00022191,2]
[312171525,1705678251151,-500.0,0.00022191,2]
[312171526,1705678251161,-861.68,0.00022191,2]
[312171527,1705678251171,-614.59,0.00022191,2]
[312171528,1705678251182,-723.49,0.00022191,2]
[312171529,1705678251192,-500.0,0.00022191,2]
[312171530,1705678251202,-899.05,0.00022191,2]
[312171531,1705678251212,-500.0,0.00022191,2]
[312171532,1705678251223,-4897.22,0.00022191,2]
[312171533,1705678251233,-500.0,0.00022191,2]
[312171534,1705678251243,-1831.94,0.00022191,2]
[312171535,1705678251253,-852.38,0.00022191,2]
[312171536,1705678251263,-500.0,0.00022191,2]
[312171537,1705678251273,-705.55,0.00022191,2]
[312171538,1705678251283,-715.8,0.00022191,2]
[312171539,1705678251293,-1635.03,0.00022191,2]
[312171540,1705678251303,-544.37,0.00022191,2]
[312171541,1705678251315,-952.15,0.00022191,2]
[312171542,1705678251326,-1958.54,0.00022191,2]
[312171543,1705678251337,-757.76,0.00022191,2]
[312171544,1705678251347,-500.0,0.00022191,2]
[312171545,1705678251357,-975.91,0.00022191,2]
[312171546,1705678251367,-500.0,0.00022191,2]
[312171547,1705678251377,-2022.58,0.00022191,2]
[312171548,1705678251387,-500.0,0.00022191,2]
[312171549,1705678251396,-701.67,0.00022191,2]
[312171550,1705678251406,-6494.5,0.00022191,2]
[312171551,1705678251417,-1219.57,0.00022191,2]
[312171552,1705678251427,-1253.16,0.00022191,2]
[312171553,1705678251437,-500.0,0.00022191,2]
[312171554,1705678251447,-1300.08,0.00022191,2]
[312171555,1705678251457,-3234.69,0.00022191,2]
[312171556,1705678251467,-500.0,0.00022191,2]
[312171557,1705678251476,-500.0,0.00022191,2]
[312171558,1705678251486,-565.57,0.00022191,2]
[312171559,1705678251497,-9572.5,0.00022191,2]
[312171560,1705678251506,-7806.92,0.00022191,2]
[312171561,1705678251515,-500.0,0.00022191,2]
[312171562,1705678251526,-816.31,0.00022191,2]
[312171563,1705678251536,-2361.38,0.00022191,2]
[312171564,1705678251546,-500.0,0.00022191,2]
[312171565,1705678251556,-1402.34,0.00022191,2]
[312171566,1705678251568,-500.0,0.00022191,2]
[312171567,1705678251578,-2376.67,0.00022191,2]
[312171568,1705678251588,-500.0,0.00022191,2]
[312171569,1705678251598,-500.0,0.00022191,2]
[312171570,1705678251608,-534.94,0.00022191,2]
[312171571,1705678251622,-610.32,0.00022191,2]
[312171572,1705678251632,-591.69,0.00022191,2]
[312171573,1705678251642,-500.0,0.00022191,2]
[312171574,1705678251652,-717.79,0.00022191,2]
[312171575,1705678251663,-623.99,0.00022191,2]
[312171576,1705678251672,-1362.82,0.00022191,2]
[312171577,1705678251682,-500.0,0.00022191,2]
[312171578,1705678251691,-598.75,0.00022191,2]
[312171579,1705678251700,-500.0,0.00022191,2]
[312171580,1705678251710,-19099.25,0.00022191,2]
[312171581,1705678251720,-4157.3,0.00022191,2]
[312171582,1705678251729,-500.0,0.00022191,2]
[312171583,1705678251738,-2771.57,0.00022191,2]
[312171584,1705678251748,-500.0,0.00022191,2]
[312171585,1705678251757,-1045.96,0.00022191,2]
[312171586,1705678252085,-500.0,0.00022191,2]
[312171587,1705678252097,-500.0,0.00022191,2]
[312171588,1705678252108,-12697.96,0.00022191,2]
[312171589,1705678252117,-500.0,0.00022191,2]
[312171590,1705678252127,-571.57,0.00022191,2]
[312171591,1705678252137,-511.47,0.00022191,2]
[312171592,1705678252147,-1964.65,0.00022191,2]
[312171593,1705678252157,-1098.53,0.00022191,2]
[312171594,1705678252167,-500.0,0.00022191,2]
[312171595,1705678252177,-1348.5,0.00022191,2]
[312171596,1705678252186,-2100.0,0.00022191,2]
[312171597,1705678252195,-949.39,0.00022191,2]
[312171598,1705678252205,-2445.96,0.00022191,2]
[312171599,1705678252214,-500.0,0.00022191,2]
[312171600,1705678252224,-1269.53,0.00022191,2]
[312171601,1705678252234,-500.0,0.00022191,2]
[312171602,1705678252243,-942.89,0.00022191,2]
[312171603,1705678252253,-529.86,0.00022191,2]
[312171604,1705678252263,-500.0,0.00022191,2]
[312171605,1705678252272,-610.34,0.00022191,2]
[312171606,1705678252282,-1371.23,0.00022191,2]
[312171607,1705678252291,-769.96,0.00022191,2]
[312171608,1705678252301,-2348.96,0.00022191,2]
[312171609,1705678252311,-324.17988829,0.00022191,2]
[312171610,1705678252321,-1842.12,0.00022191,2]
[312171611,1705678252330,-500.0,0.00022191,2]
[312171612,1705678252340,-500.0,0.00022191,2]
[312171613,1705678252350,-681.74,0.00022191,2]
[312171614,1705678252360,-2360.64,0.00022191,2]
[312171615,1705678252369,-531.9594929,0.00022191,2]
[312171616,1705678252379,-566.01,0.00022191,2]
[312171617,1705678252389,-3098.94,0.00022191,2]
[312171618,1705678252399,-677.65,0.00022191,2]
[312171619,1705678252408,-848.48,0.00022191,2]
[312171620,1705678252417,-676.33,0.00022191,2]
[312171621,1705678252427,-1127.71,0.00022191,2]
[312171622,1705678252437,-1350.13,0.00022191,2]
[312171623,1705678252446,-500.0,0.00022191,2]
[312171624,1705678252456,-1745.76,0.00022191,2]
[312171625,1705678252466,-1044.1,0.00022191,2]
[312171626,1705678252475,-500.0,0.00022191,2]
[312171627,1705678252485,-1150.91,0.00022191,2]
[312171628,1705678252494,-1230.61,0.00022191,2]
[312171629,1705678252504,-1395.71,0.00022191,2]
[312171630,1705678252514,-576.08,0.00022191,2]
[312171631,1705678252524,-500.0,0.00022191,2]
[312171632,1705678252534,-500.0,0.00022191,2]
[312171633,1705678252543,-1106.0,0.00022191,2]
[312171634,1705678252553,-1856.19,0.00022191,2]
[312171635,1705678252564,-500.0,0.00022191,2]
[312171636,1705678252575,-500.0,0.00022191,2]
[312171637,1705678252585,-1448.18,0.00022191,2]
[312171638,1705678252596,-1237.53,0.00022191,2]
[312171639,1705678252606,-739.48,0.00022191,2]
[312171640,1705678252617,-975.36,0.00022191,2]
[312171641,1705678252627,-2784.75,0.00022191,2]
[312171642,1705678252636,-744.99,0.00022191,2]
[312171643,1705678252646,-2811.82,0.00022191,2]
[312171644,1705678252655,-500.0,0.00022191,2]
[312171645,1705678252665,-500.0,0.00022191,2]
[312171646,1705678252675,-2078.94,0.00022191,2]
[312171647,1705678252685,-10549.01,0.00022191,2]
[312171648,1705678252694,-337.43474968,0.00022191,2]
[312171649,1705678252705,-1243.23,0.00022191,2]
[312171650,1705678252714,-500.0,0.00022191,2]
[312171651,1705678252724,-1479.97,0.00022191,2]
[312171652,1705678252734,-5004.8,0.00022191,2]
[312171653,1705678252743,-730.99,0.00022191,2]
[312171654,1705678252753,-1125.39,0.00022191,2]
[312171655,1705678252764,-743.57,0.00022191,2]
[312171656,1705678252773,-716.2,0.00022191,2]
[312171657,1705678252784,-500.0,0.00022191,2]
[312171658,1705678252793,-500.0,0.00022191,2]
[312171659,1705678252804,-1150.08,0.00022191,2]
[312171660,1705678252815,-547.1,0.00022191,2]
[312171661,1705678252825,-1113.73,0.00022191,2]
[312171662,1705678252835,-500.0,0.00022191,2]
[312171663,1705678252845,-826.5,0.00022191,2]
[312171664,1705678252855,-500.0,0.00022191,2]
[312171665,1705678252865,-1154.17,0.00022191,2]
[312171666,1705678252875,-500.0,0.00022191,2]
[312171667,1705678252885,-3340.4,0.00022191,2]
[312171668,1705678252895,-693.95,0.00022191,2]
[312171669,1705678252905,-1747.58,0.00022191,2]
[312171670,1705678252915,-776.7,0.00022191,2]
[312171671,1705678252924,-711.65,0.00022191,2]
[312171672,1705678252934,-2672.86,0.00022191,2]
[312171673,1705678252944,-500.0,0.00022191,2]
[312171674,1705678252954,-1055.87,0.00022191,2]
[312171675,1705678252964,-517.38,0.00022191,2]
[312171676,1705678252974,-722.82,0.00022191,2]
[312171677,1705678252984,-4742.2,0.00022191,2]
[312171678,1705678252995,-5753.61,0.00022191,2]
[312171679,1705678253005,-500.0,0.00022191,2]
[312171680,1705678253015,-777.57,0.00022191,2]
[312171681,1705678253026,-517.67,0.00022191,2]
[312171682,1705678253038,-1381.2,0.00022191,2]
[312171683,1705678253047,-500.0,0.00022191,2]
[312171684,1705678253058,-1473.76,0.00022191,2]
[312171685,1705678253069,-500.0,0.00022191,2]
[312171686,1705678253078,-500.0,0.00022191,2]
[312171687,1705678253088,-1037.7,0.00022191,2]
[312171688,1705678253099,-500.0,0.00022191,2]
[312171689,1705678253110,-500.0,0.00022191,2]
[312171690,1705678253120,-2333.34,0.00022191,2]
[312171691,1705678253130,-570.31,0.00022191,2]
[312171692,1705678253140,-542.82,0.00022191,2]
[312171693,1705678253150,-1929.89,0.00022191,2]
[312171694,1705678253159,-564.38,0.00022191,2]
[312171695,1705678253169,-2379.06,0.00022191,2]
[312171696,1705678253179,-500.0,0.00022191,2]
[312171697,1705678253188,-500.0,0.00022191,5]
[312171698,1705678253197,-859.94,0.00022191,2]
[312171699,1705678253207,-648.08,0.00022191,2]
[312171700,1705678253217,-680.47,0.00022191,2]
[312171701,1705678253226,-1380.56,0.00022191,2]
[312171702,1705678253236,-1362.21,0.00022191,2]
[312171703,1705678253246,-1026.83,0.00022191,2]
[312171704,1705678253256,-745.48,0.00022191,2]
[312171705,1705678253266,-2959.43,0.00022191,2]
[312171706,1705678253275,-688.12,0.00022191,2]
[312171707,1705678253284,-4341.8,0.00022191,2]
[312171708,1705678253294,-500.0,0.00022191,2]
[312171709,1705678253304,-500.0,0.00022191,2]
[312171710,1705678253316,-1036.56,0.00022191,2]
[312171711,1705678253326,-1109.11,0.00022191,2]
[312171712,1705678253336,-1406.22,0.00022191,2]
[312171713,1705678253347,-503.34,0.00022191,2]
[312171714,1705678253357,-500.0,0.00022191,2]
[312171715,1705678253367,-500.0,0.00022191,2]
[312171716,1705678253377,-500.0,0.00022191,2]
[312171717,1705678253387,-500.0,0.00022191,2]
[312171718,1705678253397,-500.0,0.00022191,2]
[312171719,1705678253406,-833.62,0.00022191,2]
[312171720,1705678253416,-1148.48,0.00022191,2]
[312171721,1705678253426,-4679.12,0.00022191,2]
[312171722,1705678253436,-821.08,0.00022191,2]
[312171723,1705678253446,-2555.85,0.00022191,2]
[312171724,1705678253457,-766.81,0.00022191,2]
[312171725,1705678253467,-668.1,0.00022191,2]
[312171726,1705678253476,-787.79,0.00022191,2]
[312171727,1705678253486,-15389.13,0.00022191,2]
[312171728,1705678253496,-561.4,0.00022191,2]
[312171729,1705678253506,-1090.18,0.00022191,2]
[312171730,1705678253516,-1440.08,0.00022191,2]
[312171731,1705678253525,-500.0,0.00022191,2]
[312171732,1705678253535,-645.22,0.00022191,2]